bitfinex/quotes_SOLUSD_20241210
["timestamp","ask_amount","ask_price","bid_price","bid_amount"]
[1733821956086,0.563875,218.07,218.06,349.68831285]
[1733821956397,0.563875,218.07,218.06,37.68831285]
[1733821956597,0.563875,218.07,218.06,38.37575244]
[1733821959266,0.563875,218.07,218.06,350.37575244]
[1733821959484,0.563875,218.07,218.06,349.68831285]
[1733821960761,0.563875,218.07,218.06,357.66671285]
[1733821960966,1.1545,218.25,218.08,10.0]
[1733821961176,1.1545,218.25,218.15,23.776884]
[1733821961377,1.1545,218.25,218.16,0.68727327]
[1733821962292,1.1545,218.25,218.17,0.68725455]
[1733821963388,20.0,218.23,218.18,0.68727251]
[1733821964168,20.0,218.23,218.2,312.0]
[1733821965794,20.0,218.23,218.15,23.776884]
[1733821966089,20.0,218.23,218.16,0.68729638]
[1733821967105,5.45307452,218.29,218.17,13.91142885]
[1733821967269,20.0,218.26,218.18,14.59859688]
[1733821967781,5.45307452,218.29,218.18,14.59859688]
[1733821968096,5.45307452,218.29,218.21,13.91142885]
[1733821968406,0.563875,218.29,218.25,13.91142885]
[1733821968703,0.563875,218.29,218.26,0.68698627]
[1733821968903,0.563875,218.29,218.28,312.0]
[1733821971776,0.563875,218.29,218.19,13.91142885]
[1733821972104,0.563875,218.29,218.2,0.68715804]
[1733821972902,0.563875,218.29,218.18,0.68722922]
[1733821974171,0.563875,218.29,218.18,14.59865807]
[1733821974771,0.563875,218.29,218.18,0.68722922]
[1733821974997,0.563875,218.29,218.18,14.59865807]
[1733821975588,2.42266993,218.29,218.18,0.68722922]
[1733821975810,20.0,218.25,218.13,0.68723432]
[1733821976580,20.0,218.25,218.13,14.59866317]
[1733821976975,20.0,218.25,218.13,0.68723432]
[1733821977175,20.0,218.25,218.12,0.68742837]
[1733821977610,20.0,218.25,218.13,13.91142885]
[1733821977906,20.0,218.25,218.15,13.91142885]
[1733821978074,20.0,218.25,218.16,0.68732505]
[1733821979970,20.0,218.25,218.14,0.68737143]
[1733821980174,20.0,218.25,218.15,13.91142885]
[1733821980374,20.0,218.25,218.18,13.91142885]
[1733821980600,7.3381,218.28,218.19,0.68719465]
[1733821981397,1.1546,218.28,218.19,14.5986235]
[1733821982494,1.1546,218.28,218.19,0.68719465]
[1733821982814,1.1546,218.28,218.2,0.68721421]
[1733821983294,1.1546,218.28,218.23,312.0]
[1733821983883,0.563875,218.29,218.24,0.68722909]
[1733821984283,0.563875,218.29,218.21,0.68711853]
[1733821986609,0.563875,218.29,218.19,0.68717042]
[1733821987116,0.563875,218.29,218.22,312.0]
[1733821988590,0.563875,218.29,218.23,0.68718056]
[1733821988793,0.563875,218.29,218.21,0.68717941]
[1733821990025,0.563875,218.29,218.22,13.91142885]
[1733821990207,0.563875,218.29,218.23,14.59848469]
[1733821991297,0.563875,218.29,218.24,13.91142885]
[1733821991502,0.563875,218.29,218.25,0.68700379]
[1733821991711,0.563875,218.29,218.28,312.0]
[1733821999724,0.563875,218.29,218.28,320.86862343]
[1733822000611,0.563875,218.29,218.28,344.64550743]
[1733822000829,0.563875,218.29,218.28,352.23330743]
[1733822001224,0.563875,218.29,218.28,357.21275305]
[1733822001426,1.1546,218.47,218.29,23.776884]
[1733822001633,1.1546,218.47,218.35,13.84806905]
[1733822001829,20.0,218.45,218.36,0.68669527]
[1733822002811,20.0,218.45,218.34,0.68670834]
[1733822004534,20.0,218.45,218.44,312.0]
[1733822006429,2.95912181,218.47,218.44,312.0]
[1733822006627,2.95912181,218.47,218.36,13.84806905]
[1733822006834,2.95912181,218.47,218.37,0.68663912]
[1733822007926,20.0,218.45,218.37,0.68663912]
[1733822008279,0.563875,218.51,218.41,13.84806905]
[1733822008542,0.563875,218.51,218.37,0.68663912]
[1733822008543,0.563875,218.51,218.43,13.84806905]
[1733822008744,0.563875,218.51,218.47,13.84806905]
[1733822009156,0.563875,218.51,218.48,0.68637219]
[1733822009358,0.563875,218.51,218.48,14.53444124]
[1733822009551,0.563875,218.51,218.5,312.0]
[1733822012258,0.563875,218.51,218.43,13.84806905]
[1733822012554,0.563875,218.51,218.41,2.20113171]
[1733822012746,0.563875,218.51,218.41,16.04920076]
[1733822013347,0.563875,218.51,218.41,1.5147]
[1733822013936,0.563875,218.51,218.39,13.84806905]
[1733822014459,0.563875,218.51,218.38,20.60385621]
[1733822014840,0.563875,218.51,218.38,0.68648716]
[1733822015043,22.39348064,218.51,218.38,0.68648716]
[1733822015444,22.39348064,218.51,218.37,0.68666052]
[1733822016157,0.563875,218.72,218.5,31.43206905]
[1733822016462,2.68836714,218.67,218.58,13.84806905]
[1733822016673,2.68836714,218.67,218.56,13.84806905]
[1733822017758,2.68836714,218.67,218.58,13.84806905]
[1733822018959,2.68836714,218.67,218.56,13.84806905]
[1733822019143,2.68836714,218.67,218.54,13.84806905]
[1733822019347,2.68836714,218.67,218.54,14.53425251]
[1733822019753,23.776884,218.66,218.54,0.68618346]
[1733822019959,20.0,218.63,218.5,21.43206905]
[1733822020165,20.0,218.63,218.51,14.53428857]
[1733822020371,20.0,218.63,218.53,13.84806905]
[1733822020571,2.68836714,218.67,218.54,0.6861483]
[1733822021060,20.0,218.71,218.54,14.53421735]
[1733822021270,20.0,218.7,218.54,14.53421735]
[1733822021645,20.0,218.69,218.54,14.53421735]
[1733822021857,2.77331728,218.68,218.54,0.6861483]
[1733822022458,2.77331728,218.68,218.55,13.84806905]
[1733822022661,2.77331728,218.68,218.55,0.68608677]
[1733822022969,2.77331728,218.68,218.55,312.68608677]
[1733822023170,2.77331728,218.68,218.55,312.0]
[1733822023367,2.77331728,218.68,218.53,13.84806905]
[1733822023560,20.0,218.64,218.54,0.68617264]
[1733822024068,20.0,218.64,218.54,14.53424169]
[1733822024270,2.77331728,218.68,218.55,13.84806905]
[1733822024573,2.77331728,218.68,218.56,0.68607321]
[1733822024871,20.0,218.71,218.56,14.53414226]
[1733822025462,20.0,218.71,218.56,0.68607321]
[1733822025664,20.0,218.69,218.57,14.53407949]
[1733822026066,20.0,218.69,218.57,0.68601044]
[1733822026495,20.0,218.71,218.57,0.68601044]
[1733822027350,22.71155563,218.71,218.57,0.68601044]
[1733822027757,22.71155563,218.71,218.57,14.53407949]
[1733822027958,22.71155563,218.71,218.57,0.68601044]
[1733822028569,22.71155563,218.71,218.58,0.6860546]
[1733822028963,22.71155563,218.71,218.5,7.584]
[1733822028964,23.776884,218.66,218.51,0.6860518]
[1733822029169,20.0,218.63,218.51,0.6860518]
[1733822030962,20.0,218.63,218.5,8.2702198]
[1733822033069,21.80638406,218.63,218.5,8.2702198]
[1733822034093,20.0,218.59,218.5,1.5147]
[1733822034274,20.0,218.59,218.47,0.68638912]
[1733822034471,20.0,218.59,218.45,7.01918991]
[1733822034792,20.0,218.55,218.45,6.3328]
[1733822035369,20.0,218.55,218.44,2.28608561]
[1733822036974,20.0,218.55,218.44,1.5996]
[1733822037181,23.776884,218.54,218.4,0.68649938]
[1733822037375,20.0,218.51,218.4,0.68649938]
[1733822041966,23.776884,218.54,218.34,6.3328]
[1733822041967,20.0,218.49,218.34,6.3328]
[1733822042165,20.0,218.49,218.35,0.68673736]
[1733822044692,20.0,218.49,218.32,1.5996]
[1733822044693,23.776884,218.48,218.33,0.68672165]
[1733822044891,21.6158,218.45,218.33,0.68672165]
[1733822045388,21.6158,218.45,218.32,1.5996]
[1733822045591,21.6158,218.45,218.3,0.68685458]
[1733822046173,43.776884,218.44,218.3,0.68685458]
[1733822046809,43.776884,218.44,218.27,0.68692308]
[1733822046810,20.0,218.39,218.27,0.68692308]
[1733822047506,20.0,218.36,218.27,0.68692308]
[1733822047674,20.0,218.36,218.26,2.28657136]
[1733822048120,20.0,218.36,218.26,0.68697136]
[1733822048278,1.6158,218.35,218.22,0.68706603]
[1733822049183,1.6158,218.35,218.23,0.68707958]
[1733822049383,20.0,218.4,218.26,13.84806905]
[1733822049579,20.0,218.4,218.27,0.68695377]
[1733822049907,20.0,218.4,218.27,14.53502282]
[1733822050277,1.84250777,218.4,218.27,14.53502282]
[1733822050794,1.6158,218.41,218.27,14.53502282]
[1733822051189,3.43472131,218.41,218.27,0.68695377]
[1733822051492,20.0,218.4,218.28,0.68696349]
[1733822051870,20.0,218.4,218.24,0.68697459]
[1733822052574,20.0,218.4,218.24,312.68697459]
[1733822052785,20.0,218.4,218.27,13.84806905]
[1733822052988,20.0,218.4,218.28,0.68686557]
[1733822053293,3.47843122,218.41,218.28,14.53493462]
[1733822053476,3.47843122,218.41,218.29,13.84806905]
[1733822053675,3.47843122,218.41,218.3,0.68678925]
[1733822054379,20.0,218.4,218.3,0.68678925]
[1733822054690,20.0,218.4,218.27,13.84806905]
[1733822054995,20.0,218.4,218.28,0.68686617]
[1733822055789,20.0,218.4,218.28,14.53493522]
[1733822055991,20.0,218.4,218.28,326.53493522]
[1733822056198,20.0,218.4,218.29,13.84806905]
[1733822056504,1.85785586,218.46,218.32,13.84806905]
[1733822056799,1.5848,218.48,218.31,1.5598]
[1733822056800,1.5848,218.48,218.33,0.68673804]
[1733822057290,1.5848,218.48,218.31,2.24655705]
[1733822057507,1.5848,218.48,218.31,1.5598]
[1733822057808,1.5848,218.48,218.26,13.84806905]
[1733822057809,20.0,218.4,218.27,0.6869191]
[1733822058483,43.776884,218.43,218.27,0.6869191]
[1733822058888,20.0,218.38,218.21,1.5598]
[1733822059089,20.0,218.34,218.22,0.68712131]
[1733822059273,23.776884,218.37,218.22,0.68712131]
[1733822059478,20.0,218.34,218.22,312.68712131]
[1733822059686,20.0,218.34,218.21,1.5598]
[1733822059901,20.0,218.34,218.22,0.68711463]
[1733822060378,1.85702008,218.37,218.22,14.53518368]
[1733822060699,20.0,218.39,218.24,13.84806905]
[1733822060993,20.0,218.39,218.25,0.68699413]
[1733822061781,20.0,218.39,218.25,14.53506318]
[1733822062378,20.0,218.39,218.25,0.68699413]
[1733822062584,8.1099,218.42,218.35,312.0]
[1733822062785,1.5848,218.42,218.35,312.0]
[1733822063179,1.5848,218.42,218.31,15.40786905]
[1733822063387,1.5848,218.42,218.32,0.68678125]
[1733822064915,20.0,218.45,218.32,0.68678125]
[1733822065401,20.0,218.45,218.33,13.84806905]
[1733822065598,20.0,218.45,218.34,0.68669534]
[1733822066186,20.0,218.45,218.34,312.68669534]
[1733822066386,20.0,218.45,218.34,312.0]
[1733822066978,1.5848,218.47,218.37,13.84806905]
[1733822067202,1.5848,218.47,218.38,0.68660155]
[1733822068199,1.5848,218.47,218.37,0.6866263]
[1733822070009,1.5848,218.47,218.38,312.68664636]
[1733822070303,1.5848,218.47,218.38,312.0]
[1733822070510,1.5848,218.47,218.39,0.68663928]
[1733822071511,1.5848,218.47,218.37,0.6866418]
[1733822072506,1.5848,218.47,218.37,14.53471085]
[1733822073399,1.5848,218.47,218.37,0.6866418]
[1733822073702,1.5848,218.47,218.37,312.6866418]
[1733822073900,1.5848,218.47,218.37,312.0]
[1733822074900,1.5848,218.47,218.32,37.62495305]
[1733822075109,1.5848,218.47,218.33,0.68675984]
[1733822075298,1.5848,218.47,218.33,14.53482889]
[1733822077196,1.5848,218.47,218.33,0.68675984]
[1733822077403,1.5848,218.47,218.32,14.53484089]
[1733822077798,1.5848,218.47,218.35,312.0]
[1733822078411,1.5848,218.47,218.36,0.68678064]
[1733822079316,1.5848,218.47,218.34,0.68674819]
[1733822079626,1.5848,218.47,218.31,2.24664201]
[1733822080312,1.5848,218.47,218.31,16.09471106]
[1733822080722,1.5848,218.47,218.32,13.84806905]
[1733822080895,1.5848,218.47,218.33,0.68675071]
[1733822081605,1.5848,218.47,218.33,326.53481976]
[1733822081813,1.5848,218.47,218.34,13.84806905]
[1733822082022,1.5848,218.47,218.35,0.68668593]
[1733822084103,1.5848,218.47,218.34,0.68668205]
[1733822084432,20.0,218.42,218.31,0.68683011]
[1733822085307,20.0,218.42,218.28,0.68690863]
[1733822085993,1.566,218.41,218.26,0.68701685]
[1733822087897,6.4744,218.4,218.26,0.68701685]
[1733822088123,20.0,218.37,218.28,312.0]
[1733822089900,20.0,218.37,218.23,13.84806905]
[1733822090219,20.0,218.37,218.24,0.68703739]
[1733822090799,20.0,218.37,218.31,312.0]
[1733822092538,20.0,218.37,218.24,13.84806905]
[1733822092712,20.0,218.37,218.27,13.84806905]
[1733822093026,20.0,218.37,218.28,0.68688709]
[1733822094417,6.4744,218.4,218.29,13.84806905]
[1733822094620,6.4744,218.4,218.3,0.68680505]
[1733822094917,1.566,218.45,218.32,13.84806905]
[1733822095118,1.566,218.45,218.33,0.68673906]
[1733822095633,1.566,218.45,218.34,312.0]
[1733822095816,1.566,218.45,218.35,0.68677086]
[1733822096434,1.566,218.45,218.35,14.53483991]
[1733822096628,1.566,218.45,218.35,0.68677086]
[1733822096811,6.0861,218.51,218.36,23.776884]
[1733822097008,6.0861,218.51,218.38,23.776884]
[1733822097235,6.0861,218.51,218.39,0.68653946]
[1733822097956,6.0861,218.51,218.39,14.53460851]
[1733822098156,6.0861,218.51,218.39,0.68653946]
[1733822098361,1.6515,218.52,218.43,23.776884]
[1733822098647,6.0861,218.56,218.44,0.68639756]
[1733822099247,6.0861,218.56,218.5,312.0]
[1733822100236,23.776884,218.55,218.41,1.6527]
[1733822100459,20.0,218.52,218.42,0.6865302]
[1733822101452,20.0,218.52,218.4,0.68656703]
[1733822101834,20.0,218.52,218.37,0.68662636]
[1733822103367,20.0,218.52,218.42,312.0]
[1733822103764,1.6515,218.47,218.33,20.41006905]
[1733822104057,1.6515,218.47,218.3,1.6527]
[1733822104058,20.0,218.43,218.34,0.68668876]
[1733822104277,20.0,218.43,218.39,0.41024799]
[1733822105352,19.58975201,218.43,218.28,0.68690325]
[1733822105762,23.776884,218.42,218.28,0.68690325]
[1733822106065,23.776884,218.42,218.26,0.68700801]
[1733822106437,7.7376,218.41,218.26,0.68700801]
[1733822106755,23.776884,218.4,218.23,312.0]
[1733822106940,23.776884,218.4,218.24,0.687113]
[1733822107146,33.776884,218.4,218.24,0.687113]
[1733822107350,20.0,218.33,218.19,1.6527]
[1733822107575,20.0,218.29,218.2,0.68720527]
[1733822107736,20.68720527,218.29,218.13,15.50076905]
[1733822107939,23.776884,218.28,218.14,0.68724512]
[1733822108136,20.0,218.25,218.14,0.68724512]
[1733822108379,0.68720527,218.24,218.14,0.68724512]
[1733822108658,0.68720527,218.24,218.12,0.68742179]
[1733822108865,0.68720527,218.24,218.09,0.68747944]
[1733822109161,20.0,218.2,218.09,0.68747944]
[1733822109543,20.68720527,218.27,218.09,22.89638902]
[1733822109742,0.68720527,218.27,218.12,22.20890958]
[1733822109949,0.68720527,218.28,218.13,22.89624668]
[1733822110263,0.68720527,218.28,218.22,312.0]
[1733822110461,0.68720527,218.29,218.22,312.0]
[1733822110661,2.33870527,218.3,218.22,312.0]
[1733822110874,2.33870527,218.3,218.13,22.20890958]
[1733822111073,2.33870527,218.3,218.14,0.6873128]
[1733822111238,2.33870527,218.3,218.15,45.98579358]
[1733822111439,2.33870527,218.3,218.16,22.89614218]
[1733822111859,2.33870527,218.3,218.18,22.20890958]
[1733822111860,1.6515,218.3,218.18,22.20890958]
[1733822112044,1.6515,218.3,218.19,0.68720017]
[1733822113754,20.0,218.29,218.27,312.0]
[1733822114455,20.0,218.25,218.11,22.20890958]
[1733822114655,0.68720527,218.24,218.12,0.68738948]
[1733822115369,20.0,218.25,218.21,312.0]
[1733822115768,0.68720527,218.27,218.21,312.0]
[1733822115961,0.68720527,218.27,218.12,45.98579358]
[1733822116165,1.6515,218.3,218.12,45.98579358]
[1733822116166,2.33870527,218.3,218.17,22.20890958]
[1733822116370,1.6515,218.3,218.18,22.89606406]
[1733822116668,1.6515,218.3,218.18,0.68715448]
[1733822117061,1.6515,218.3,218.18,22.89606406]
[1733822117250,1.6515,218.3,218.18,0.68715448]
[1733822117450,20.68720527,218.29,218.17,23.776884]
[1733822117652,20.68720527,218.29,218.18,0.68722897]
[1733822118073,20.68720527,218.29,218.15,0.68732359]
[1733822118480,20.0,218.29,218.17,22.20890958]
[1733822118662,20.0,218.29,218.18,22.89610415]
[1733822118868,20.0,218.29,218.24,312.0]
[1733822119463,0.68720527,218.28,218.15,22.20890958]
[1733822119654,0.68720527,218.28,218.16,0.68730305]
[1733822120554,0.68720527,218.28,218.14,0.6873794]
[1733822120748,0.68720527,218.28,218.05,18.0269]
[1733822120749,20.0,218.24,218.12,0.68737679]
[1733822120953,0.68720527,218.23,218.12,0.68737679]
[1733822121976,0.68720527,218.23,218.09,22.89637379]
[1733822122170,20.0,218.24,218.12,22.20890958]
[1733822122478,20.0,218.29,218.15,312.0]
[1733822122659,0.68720527,218.28,218.16,0.68732232]
[1733822123469,0.68720527,218.28,218.09,22.20890958]
[1733822123665,20.68720527,218.28,218.11,22.20890958]
[1733822123873,20.0,218.24,218.12,0.687374]
[1733822124364,0.68720527,218.26,218.12,22.89628358]
[1733822124573,0.68720527,218.28,218.13,22.20890958]
[1733822124767,1.6515,218.3,218.16,22.20890958]
[1733822124960,1.6515,218.3,218.18,23.776884]
[1733822125175,1.6515,218.3,218.2,23.776884]
[1733822125361,0.68720527,218.29,218.21,0.68715515]
[1733822125674,0.68720527,218.29,218.18,0.68723818]
[1733822125874,6.232,218.28,218.09,0.68730728]
[1733822126057,0.68720527,218.27,218.09,0.68730728]
[1733822126671,20.0,218.23,218.09,312.68730728]
[1733822126868,0.68720527,218.22,218.09,312.0]
[1733822127267,20.0,218.18,218.03,1.5452]
[1733822127576,20.0,218.14,218.04,0.68766001]
[1733822127780,0.68720527,218.13,218.04,0.68766001]
[1733822127954,0.68720527,218.13,218.01,0.68776673]
[1733822128758,7.8711,218.17,218.07,22.20890958]
[1733822128963,7.8711,218.17,218.08,22.89643927]
[1733822129771,7.8711,218.17,218.08,0.68752969]
[1733822129964,20.0,218.14,218.08,0.68752969]
[1733822130283,7.8711,218.17,218.13,312.0]
[1733822130672,0.68720527,218.16,218.13,312.0]
[1733822131181,0.68720527,218.16,217.98,28.47430958]
[1733822131488,0.68720527,218.16,217.99,0.68776074]
[1733822132159,20.0,218.14,218.02,23.776884]
[1733822132364,20.0,218.14,218.03,0.68764079]
[1733822132784,20.0,218.14,218.03,22.89655037]
[1733822133156,20.0,218.14,218.04,23.776884]
[1733822133356,7.8711,218.17,218.05,0.68764093]
[1733822134060,7.8711,218.17,218.09,312.0]
[1733822134859,20.0,218.14,218.09,312.0]
[1733822135079,20.0,218.14,218.05,22.20890958]
[1733822135286,20.0,218.14,218.06,0.68758268]
[1733822136065,20.0,218.14,218.03,23.776884]
[1733822136265,20.0,218.14,218.04,0.68768688]
[1733822137175,20.0,218.14,218.02,23.776884]
[1733822137382,20.0,218.14,218.03,0.68772014]
[1733822138072,20.0,218.14,218.05,312.0]
[1733822139479,20.0,218.14,217.98,28.47430958]
[1733822139480,0.68720527,218.13,217.98,28.47430958]
[1733822139690,0.68720527,218.13,217.99,0.68777527]
[1733822140575,20.0,218.14,218.02,22.20890958]
[1733822140762,20.0,218.14,218.03,0.68767171]
[1733822142587,20.0,218.14,218.04,312.0]
[1733822142789,20.0,218.14,218.05,0.68771937]
[1733822143885,20.0,218.14,218.06,0.68764439]
[1733822144495,7.8711,218.17,218.08,13.88443949]
[1733822144797,7.8711,218.17,218.09,0.68753059]
[1733822144989,0.68720527,218.16,218.06,0.68760262]
[1733822145393,0.68720527,218.16,218.03,0.68768213]
[1733822146075,20.0,218.14,218.1,312.0]
[1733822146383,20.0,218.09,217.97,2.109075]
[1733822146566,0.68720527,218.16,218.01,13.88443949]
[1733822146765,0.68720527,218.16,218.02,14.57215386]
[1733822149079,20.0,218.14,218.02,14.57215386]
[1733822149468,20.0,218.1,217.97,1.25158322]
[1733822149785,1.6244,218.08,217.97,1.25158322]
[1733822149987,7.19960527,218.07,217.97,1.25158322]
[1733822150177,20.0,218.04,217.97,0.563875]
[1733822150374,0.68720527,218.03,217.97,0.563875]
[1733822150681,20.0,218.04,217.97,0.563875]
[1733822150682,20.0,218.04,217.98,0.68805964]
[1733822150990,6.5124,218.07,217.98,0.68805964]
[1733822151373,20.0,218.04,217.98,0.68805964]
[1733822152406,20.0,218.04,218.0,312.0]
[1733822153077,20.0,218.04,217.97,0.563875]
[1733822153497,20.0,218.04,217.98,0.68793441]
[1733822154267,20.0,218.04,217.97,0.563875]
[1733822155283,0.68720527,218.03,217.97,0.563875]
[1733822160197,20.0,217.99,217.97,0.563875]
[1733822161094,26.05618927,217.98,217.97,0.563875]
[1733822161678,20.0,217.95,217.83,0.6881618]
[1733822162006,20.68720527,217.94,217.83,0.6881618]
[1733822163188,20.68720527,217.94,217.83,312.6881618]
[1733822163386,20.0,217.9,217.79,13.88443949]
[1733822163596,2.27930527,217.89,217.79,0.68843033]
[1733822163790,1.5921,217.89,217.8,13.88443949]
[1733822164096,1.5921,217.94,217.83,13.88443949]
[1733822164299,3.44549201,218.0,217.87,13.88443949]
[1733822164600,1.5921,218.0,217.89,13.88443949]
[1733822164805,1.5921,218.0,217.9,14.57255332]
[1733822164980,1.5921,218.0,217.9,0.68811383]
[1733822165498,1.5921,218.0,217.91,13.88443949]
[1733822165803,1.5921,218.0,217.92,0.68811753]
[1733822165985,0.68720527,217.99,217.88,0.68815237]
[1733822166506,0.68720527,217.99,217.84,13.88443949]
[1733822166812,23.776884,217.98,217.85,0.68832995]
[1733822166988,0.68720527,217.97,217.85,14.57276944]
[1733822167187,43.776884,217.99,217.87,22.24749948]
[1733822167502,20.0,217.99,217.88,0.68822252]
[1733822167685,20.0,217.99,217.89,22.24749948]
[1733822167882,20.0,217.99,217.9,0.68811198]
[1733822168683,20.0,217.99,217.9,22.93561146]
[1733822168887,20.0,217.99,217.9,0.68811198]
[1733822169187,20.0,217.99,217.91,22.93566157]
[1733822169392,1.5921,218.05,217.94,22.24749948]
[1733822169694,1.5921,218.05,217.97,312.0]
[1733822169892,1.5921,218.1,217.99,22.24749948]
[1733822170083,1.5921,218.1,217.93,6.4832]
[1733822170084,1.5921,218.1,218.0,22.93530261]
[1733822170307,1.5921,218.1,218.01,22.24749948]
[1733822170489,6.5247,218.12,218.03,22.24749948]
[1733822170677,6.5247,218.12,218.04,0.68771248]
[1733822171419,1.5921,218.15,218.04,22.93521196]
[1733822171906,0.68720527,218.14,218.04,0.68771248]
[1733822172086,0.68720527,218.14,218.02,0.68777277]
[1733822172996,20.68720527,218.14,218.02,334.93527225]
[1733822173196,23.776884,218.13,218.02,312.0]
[1733822173407,20.0,218.1,218.02,312.0]
[1733822173591,20.0,218.1,218.01,22.24749948]
[1733822173791,20.0,218.1,218.02,22.93528356]
[1733822173991,2.27930527,218.15,218.05,22.24749948]
[1733822174191,1.5921,218.15,218.06,22.93515897]
[1733822174396,6.5247,218.17,218.06,22.93515897]
[1733822174397,6.5247,218.17,218.07,22.24749948]
[1733822174589,1.5315,218.2,218.08,22.93501306]
[1733822175203,1.5315,218.2,218.11,22.24749948]
[1733822175512,6.4859,218.23,218.12,0.68741416]
[1733822175808,0.68720527,218.22,218.07,22.24749948]
[1733822175999,0.68720527,218.22,218.08,0.68757463]
[1733822176710,20.0,218.2,218.15,312.0]
[1733822177008,23.776884,218.21,218.02,1.6211]
[1733822177009,20.0,218.16,218.03,22.24749948]
[1733822177193,20.0,218.16,218.04,0.68769834]
[1733822177391,20.0,218.18,218.06,22.24749948]
[1733822177602,20.0,218.18,218.07,0.68759362]
[1733822178002,8.30811893,218.23,218.09,22.24749948]
[1733822178205,6.4859,218.23,218.11,22.24749948]
[1733822178418,6.4859,218.23,218.12,0.68740627]
[1733822178601,6.4859,218.23,218.12,22.93490575]
[1733822178905,6.4859,218.23,218.12,0.68740627]
[1733822179112,0.68720527,218.22,218.12,0.68740627]
[1733822179315,6.4859,218.23,218.12,0.68740627]
[1733822179496,6.4859,218.23,218.13,0.6874627]
[1733822179689,20.0,218.2,218.13,0.6874627]
[1733822179895,20.0,218.2,218.18,312.0]
[1733822181686,20.0,218.2,218.02,33.86859948]
[1733822181687,24.46408927,218.19,218.04,22.24749948]
[1733822181888,20.0,218.16,218.05,0.68765062]
[1733822182894,20.0,218.16,218.04,0.6876611]
[1733822183096,0.68720527,218.15,218.04,0.6876611]
[1733822183296,20.0,218.11,218.0,0.68767372]
[1733822183490,20.0,218.09,217.97,0.68780995]
[1733822183687,0.68720527,218.08,217.97,0.68780995]
[1733822184428,0.68720527,218.08,217.93,6.4459]
[1733822184429,20.0,218.04,217.95,0.68795417]
[1733822184595,20.0,218.04,217.96,312.0]
[1733822184791,20.0,218.04,217.97,0.68798661]
[1733822184990,20.0,218.04,217.96,312.0]
[1733822186596,20.0,218.04,217.97,0.68800536]
[1733822186796,0.68720527,218.03,217.96,312.0]
[1733822187011,0.68720527,218.03,217.89,28.69339948]
[1733822187216,0.68720527,218.03,217.9,0.68812995]
[1733822187917,20.0,217.98,217.86,1.5198]
[1733822188099,0.68720527,217.97,217.87,0.68825872]
[1733822188913,0.68720527,217.97,217.85,0.68826847]
[1733822189997,20.0,217.98,217.89,334.24749948]
[1733822190215,20.0,217.98,217.9,0.68809904]
[1733822190715,1.5723,218.04,217.92,22.24749948]
[1733822190900,1.5723,218.04,217.93,22.93549325]
[1733822191101,1.5723,218.04,217.93,0.68799377]
[1733822191518,1.5723,218.04,217.93,22.93549325]
[1733822191701,1.5723,218.04,217.94,22.24749948]
[1733822191902,6.2151,218.07,217.95,0.68794737]
[1733822192101,0.68720527,218.06,217.95,0.68794737]
[1733822192308,6.2151,218.07,217.95,0.68794737]
[1733822192822,0.68720527,218.06,217.95,0.68794737]
[1733822193197,6.2151,218.07,217.95,0.68794737]
[1733822193406,6.2151,218.07,217.96,312.0]
[1733822193642,1.5723,218.09,217.97,22.93542115]
[1733822193916,21.5723,218.09,217.97,22.93542115]
[1733822194296,21.5723,218.09,217.97,0.68792167]
[1733822194819,21.5723,218.09,217.97,22.93542115]
[1733822195024,20.0,218.05,217.95,22.93536115]
[1733822195321,20.0,218.05,217.95,0.68786167]
[1733822196416,20.0,218.05,217.95,22.93536115]
[1733822196721,20.0,218.05,217.95,0.68786167]
[1733822196921,0.68720527,218.04,217.95,0.68786167]
[1733822197425,0.68720527,218.04,217.92,22.24749948]
[1733822197426,0.68720527,218.04,217.93,0.6880631]
[1733822198126,0.68720527,218.04,217.93,22.93556258]
[1733822198922,0.68720527,218.04,217.93,0.6880631]
[1733822200009,0.68720527,218.04,217.93,312.0]
[1733822200212,20.0,218.0,217.87,23.76729948]